bitfinex/quotes_ETHUSD_20251018
["timestamp","ask_amount","ask_price","bid_price","bid_amount"]
[1760819762148,0.14472758,3905.9,3905.8,6.38985303]
[1760819762666,0.14472758,3905.9,3905.8,3.82955809]
[1760819763346,0.14472758,3905.9,3905.8,6.38985303]
[1760819763544,0.14472758,3905.9,3905.8,3.82955809]
[1760819765806,0.14472758,3905.9,3905.8,6.38985303]
[1760819767794,0.04462758,3905.9,3905.8,6.38985303]
[1760819769868,0.04462758,3905.9,3905.8,7.0095204]
[1760819770102,0.04462758,3905.9,3905.8,7.4421204]
[1760819770696,0.04462758,3905.9,3905.8,6.92509806]
[1760819770890,0.04462758,3905.9,3905.8,6.49249806]
[1760819771299,0.04462758,3905.9,3905.8,2.66293997]
[1760819771794,0.36092758,3905.9,3905.0,1.728]
[1760819772108,0.36092758,3905.9,3904.9,4.26215809]
[1760819772109,0.099,3905.8,3905.5,0.10266031]
[1760819772302,0.099,3905.8,3905.0,1.728]
[1760819772600,0.099,3905.7,3905.5,2.5604895]
[1760819772800,0.099,3905.6,3905.5,2.5604895]
[1760819772972,0.099,3905.6,3905.3,2.5606156]
[1760819773170,0.099,3905.5,3905.0,2.56075474]
[1760819773405,0.099,3905.4,3905.3,0.26192758]
[1760819773609,0.2173,3905.9,3904.9,3.82955809]
[1760819773806,0.099,3905.4,3904.5,0.2179]
[1760819774122,0.099,3905.3,3904.7,3.33109861]
[1760819774273,0.099,3905.2,3904.7,2.56100791]
[1760819774474,7.26394928,3905.8,3904.2,0.6542]
[1760819774475,0.099,3905.1,3904.3,2.56121529]
[1760819774710,0.099,3905.0,3904.5,3.33122097]
[1760819775021,0.099,3905.0,3904.6,2.56105143]
[1760819775221,0.3209,3904.9,3904.6,2.56105143]
[1760819775423,0.1002,3904.8,3904.5,3.33126484]
[1760819775711,0.1002,3904.8,3904.5,2.56112867]
[1760819775905,0.2207,3904.9,3904.0,0.94490325]
[1760819776105,0.1002,3904.7,3904.4,0.77013617]
[1760819776307,0.1002,3904.7,3904.5,2.56114739]
[1760819776507,0.1002,3904.7,3904.6,2.5610818]
[1760819777579,0.2207,3904.9,3904.6,2.5610818]
[1760819777974,0.2207,3904.9,3904.7,2.56101621]
[1760819778176,0.1002,3904.8,3904.2,0.47764613]
[1760819778373,0.1002,3904.8,3904.4,2.56116888]
[1760819778601,0.1002,3904.7,3904.3,3.33142929]
[1760819778976,0.2207,3904.9,3904.3,2.5612516]
[1760819778977,0.1002,3904.6,3904.3,2.5612516]
[1760819779174,0.1002,3904.6,3904.4,3.82955809]
[1760819779594,0.1002,3904.5,3904.4,3.82955809]
[1760819779798,0.1002,3904.5,3904.4,6.39077108]
[1760819779998,0.1002,3904.5,3904.4,6.51877108]
[1760819780405,0.3209,3904.9,3904.5,2.56114313]
[1760819780609,0.1002,3904.8,3904.5,2.56114313]
[1760819781277,0.1002,3904.8,3904.4,3.95755809]
[1760819781482,0.1002,3904.7,3904.4,3.95755809]
[1760819781810,0.1002,3904.6,3904.4,3.95755809]
[1760819782014,0.1002,3904.5,3904.4,3.82955809]
[1760819783018,0.1002,3904.5,3904.2,3.95755809]
[1760819783214,0.1002,3904.4,3904.2,3.95755809]
[1760819783423,0.1002,3904.4,3904.2,6.51889049]
[1760819783599,0.1002,3904.4,3904.2,3.95755809]
[1760819785216,0.04464064,3904.7,3904.2,3.95755809]
[1760819785423,0.04464064,3904.7,3904.6,2.5610818]
[1760819785889,0.04464064,3904.7,3904.6,3.1216818]
[1760819786223,0.04464064,3904.7,3904.6,3.89177448]
[1760819786404,0.52966642,3905.7,3905.1,2.56072083]
[1760819786608,0.128,3905.7,3905.1,2.56072083]
[1760819786817,0.1014,3905.6,3905.1,2.56072083]
[1760819787010,0.128,3905.7,3905.0,2.68880455]
[1760819787310,0.1014,3905.6,3905.0,2.68880455]
[1760819787689,0.1014,3905.6,3905.1,2.5607416]
[1760819789722,0.128,3905.7,3905.0,0.128]
[1760819790025,0.128,3905.7,3905.0,2.68879905]
[1760819790026,0.04463502,3905.5,3905.0,2.68879905]
[1760819790326,0.14603502,3905.5,3905.0,2.68879905]
[1760819790722,0.1014,3905.4,3905.0,0.128]
[1760819791104,0.1014,3905.3,3905.0,0.128]
[1760819791427,0.1014,3905.2,3905.0,0.128]
[1760819793292,0.04463502,3905.5,3905.0,2.68878653]
[1760819793729,0.04463502,3905.5,3905.0,3.12138653]
[1760819795000,0.04463502,3905.5,3905.1,0.4381]
[1760819795529,0.04463502,3905.5,3905.0,2.68878653]
[1760819795751,0.14603502,3905.5,3905.0,2.68878653]
[1760819796055,0.14603502,3905.5,3905.0,3.12688653]
[1760819797354,0.04563502,3905.5,3905.0,3.12688653]
[1760819797550,0.001,3905.5,3905.0,2.68878653]
[1760819797715,0.001,3905.5,3905.0,3.12688653]
[1760819798341,0.001,3905.5,3905.0,0.128]
[1760819798544,2.66290844,3905.5,3905.0,0.128]
[1760819799243,0.1014,3905.4,3905.0,0.128]
[1760819799920,0.1014,3905.3,3905.0,0.128]
[1760819800555,0.1014,3905.3,3905.0,3.95755809]
[1760819800755,0.14603621,3905.3,3905.0,3.95755809]
[1760819802427,0.04463621,3905.3,3905.0,4.39565809]
[1760819803368,0.04463621,3905.3,3905.0,6.95647309]
[1760819803532,0.04463621,3905.3,3905.1,0.4381]
[1760819804834,0.04463621,3905.3,3905.0,6.51837309]
[1760819805152,0.04463621,3905.3,3905.2,0.4381]
[1760819805342,0.04463621,3905.3,3905.0,6.51837309]
[1760819805530,0.04463621,3905.3,3905.1,0.4381]
[1760819805731,0.04463621,3905.3,3905.0,6.51837309]
[1760819805933,0.04463621,3905.3,3905.1,2.99885055]
[1760819806240,0.04463621,3905.3,3905.1,0.4381]
[1760819806555,0.04463621,3905.3,3905.1,4.26765809]
[1760819807760,0.04463621,3905.3,3905.1,6.82839737]
[1760819807966,0.04463621,3905.3,3905.2,0.4381]
[1760819808368,0.04463621,3905.3,3905.1,6.39029737]
[1760819808572,0.04463621,3905.3,3905.1,6.82839737]
[1760819809239,0.04463621,3905.3,3905.2,2.99878831]
[1760819809432,0.04463621,3905.3,3905.1,6.39029998]
[1760819809938,0.04463621,3905.3,3905.1,6.82839998]
[1760819810341,0.04463621,3905.3,3905.2,0.4381]
[1760819811060,0.04463621,3905.3,3905.1,6.39029998]
[1760819811449,0.04463621,3905.3,3905.1,6.82839998]
[1760819811761,0.04463621,3905.3,3905.2,2.56068831]
[1760819812147,0.04463621,3905.3,3905.2,2.99878831]
[1760819812353,0.04463621,3905.3,3905.2,7.89525948]
[1760819812879,0.001,3905.5,3905.4,2.56055717]
[1760819813280,0.001,3905.5,3905.4,2.99865717]
[1760819814180,0.001,3905.5,3905.4,3.12665717]
[1760819814362,0.001,3905.5,3905.4,3.25565717]
[1760819814560,0.001,3905.5,3905.4,4.22024753]
[1760819817653,0.001,3905.5,3905.4,8.04980562]
[1760819819481,0.0456303,3905.5,3905.4,8.04980562]
[1760819820452,0.001,3905.5,3905.4,8.04980562]
[1760819822653,0.001,3905.5,3905.4,7.61170562]
[1760819823054,0.001,3905.5,3905.4,8.04980562]
[1760819825901,0.001,3905.5,3905.4,9.77780562]
[1760819826698,0.001,3905.5,3905.4,10.28340562]
[1760819826880,0.001,3905.5,3905.4,10.41140562]
[1760819829203,0.001,3905.5,3905.4,13.11240562]
[1760819829510,0.001,3905.5,3905.4,19.49240562]
[1760819829876,0.001,3905.5,3905.4,24.47656862]
[1760819830286,0.001,3905.5,3905.4,23.27728062]
[1760819831499,0.001,3905.5,3905.4,22.36642562]
[1760819832491,0.001,3905.9,3905.8,3.19389494]
[1760819832690,0.001,3905.9,3905.8,10.50151427]
[1760819832989,0.001,3905.9,3905.8,11.08981427]
[1760819833177,0.001,3905.9,3905.8,15.02199369]
[1760819833914,0.001,3905.9,3905.8,17.72299369]
[1760819834212,0.001,3905.9,3905.8,20.35547322]
[1760819834407,0.001,3905.9,3905.8,17.65447322]
[1760819834600,0.001,3905.9,3905.8,19.38247322]
[1760819843732,0.001,3905.9,3905.8,22.08347322]
[1760819843927,0.001,3905.9,3905.8,19.47947322]
[1760819844109,0.001,3905.9,3905.8,22.08247322]
[1760819845132,0.001,3905.9,3905.8,18.28757322]
[1760819845351,0.001,3905.9,3905.8,15.68457322]
[1760819846214,0.001,3905.9,3905.8,16.14487322]
[1760819847453,0.001,3905.9,3905.8,15.68457322]
[1760819849344,0.5182,3905.9,3905.8,6.49247436]
[1760819851530,0.0763,3905.9,3905.8,6.49247436]
[1760819852061,0.001,3905.9,3905.8,6.49247436]
[1760819852429,0.001,3905.9,3905.8,8.22047436]
[1760819852630,0.001,3905.9,3905.8,9.34478948]
[1760819853670,0.001,3905.9,3905.8,14.50870881]
[1760819854025,0.001,3905.9,3905.8,14.04840881]
[1760819854226,0.001,3905.9,3905.8,14.50870881]
[1760819854652,0.001,3905.9,3905.8,17.11170881]
[1760819854961,0.001,3905.9,3905.8,24.12530881]
[1760819857040,0.001,3906.0,3905.9,11.92168648]
[1760819857239,0.001,3906.0,3905.9,20.84828401]
[1760819857974,0.001,3906.0,3905.9,20.67898101]
[1760819859055,0.001,3906.0,3905.9,21.66708001]
[1760819859246,0.001,3906.0,3905.9,20.65598501]
[1760819859448,0.001,3906.0,3905.9,20.78398501]
[1760819860081,0.001,3906.3,3906.1,4.9216983]
[1760819860268,0.001,3906.3,3906.2,17.30131299]
[1760819860575,0.001,3906.3,3906.2,17.74931267]
[1760819860746,0.001,3906.3,3906.2,17.85192557]
[1760819861364,0.001,3906.3,3906.2,19.57992557]
[1760819863792,0.001,3906.3,3906.2,22.28092557]
[1760819864278,0.001,3906.3,3906.2,21.57212557]
[1760819865044,0.001,3906.3,3906.2,22.04572557]
[1760819867977,0.001,3906.3,3906.2,28.42572557]
[1760819875703,0.2427,3906.9,3906.8,2.5596396]
[1760819875903,0.2427,3906.9,3906.8,6.64316165]
[1760819876122,0.1393,3906.9,3906.8,4.54360356]
[1760819876271,0.001,3907.1,3906.8,4.54360356]
[1760819876272,0.001,3907.1,3907.0,2.55950857]
[1760819876477,0.1047,3907.1,3907.0,2.58510365]
[1760819876899,0.001,3907.1,3907.0,2.79900365]
[1760819877100,0.1047,3907.1,3907.0,4.0036263]
[1760819877300,0.1047,3907.1,3907.0,3.97803122]
[1760819878707,0.001,3907.1,3907.0,4.0036263]
[1760819879821,0.1047,3907.1,3907.0,4.52270533]
[1760819880605,0.1047,3907.1,3907.0,8.35026342]
[1760819880781,0.1047,3907.1,3907.0,8.32466834]
[1760819881691,0.001,3907.1,3907.0,8.32466834]
[1760819881890,0.001,3907.1,3907.0,10.05266834]
[1760819885080,0.001,3907.1,3907.0,9.53358931]
[1760819885827,0.1047,3907.1,3907.0,9.66078931]
[1760819886130,0.1047,3907.1,3907.0,7.93278931]
[1760819888133,0.1047,3907.1,3907.0,8.44330505]
[1760819888328,0.001,3907.1,3907.0,8.44330505]
[1760819888831,0.1047,3907.1,3907.0,8.44330505]
[1760819890512,0.001,3907.1,3907.0,8.44330505]
[1760819891715,0.1047,3907.1,3907.0,7.93278931]
[1760819891902,0.1047,3907.1,3907.0,6.72816666]
[1760819892946,0.1047,3907.1,3907.0,6.51426666]
[1760819895641,0.1047,3907.1,3907.0,3.95475809]
[1760819896440,0.1047,3907.1,3907.0,6.51426666]
[1760819897640,0.1047,3907.1,3907.0,6.38706666]
[1760819897641,0.001,3907.1,3907.0,6.38706666]
[1760819902362,0.001,3907.1,3906.9,3.82955809]
[1760819902566,0.001,3907.1,3907.0,2.55950857]
[1760819903327,0.1058,3907.1,3907.0,2.55950857]
[1760819905226,0.001,3907.1,3907.0,2.58510365]
[1760819906774,0.04560414,3907.1,3907.0,2.58510365]
[1760819907130,0.04560414,3907.1,3907.0,6.41266174]
[1760819907330,0.04560414,3907.1,3907.0,6.38706666]
[1760819907638,0.04560414,3907.1,3907.0,6.51426666]
[1760819909346,0.04560414,3907.1,3907.0,2.68670857]
[1760819909686,0.15040414,3907.1,3906.9,0.002]
[1760819910176,2.55977064,3906.6,3906.5,0.002]
[1760819910376,2.5600983,3906.1,3906.0,0.002]
[1760819910880,2.6590983,3906.1,3906.0,0.002]
[1760819912379,4.78433864,3906.1,3906.0,0.002]
[1760819912545,4.82896791,3906.1,3906.0,0.002]
[1760819918600,4.78433864,3906.1,3906.0,0.002]
[1760819919984,2.56022939,3905.9,3905.6,0.002]
[1760819920180,16.88696339,3905.9,3905.6,0.002]
[1760819920379,9.95164872,3905.9,3905.6,0.002]
[1760819920586,10.05433749,3905.9,3905.6,0.002]
[1760819921484,10.05433749,3905.9,3905.2,0.002]
[1760819921485,0.6336,3905.4,3905.2,0.002]
[1760819921670,17.40505207,3905.3,3905.2,0.002]
[1760819921876,17.50755207,3905.3,3905.2,0.002]
[1760819922064,17.61026009,3905.3,3905.2,0.002]
[1760819922462,18.24084431,3905.2,3905.1,1e-08]
[1760819922676,4.28875388,3905.1,3904.1,0.002]
[1760819922884,33.96069495,3904.8,3904.1,0.002]
[1760819923197,23.49979929,3904.8,3904.1,0.002]
[1760819923495,24.00528782,3904.8,3904.1,0.002]
[1760819923797,22.96914829,3904.8,3904.1,0.002]
[1760819923974,23.01379817,3904.8,3904.1,0.002]
[1760819924174,20.94336417,3904.8,3904.1,0.002]
[1760819924382,17.34636417,3904.8,3904.1,0.002]
[1760819924808,22.35845617,3904.8,3904.1,0.002]
[1760819925180,20.61033717,3904.8,3904.1,0.002]
[1760819925364,8.34106984,3904.8,3904.1,0.002]
[1760819925570,4.9672005,3904.8,3904.1,0.2314]
[1760819926198,5.0709005,3904.8,3904.1,0.2314]
[1760819926692,5.47264268,3904.8,3904.1,0.2314]
[1760819927128,4.6906928,3904.8,3904.4,0.4644]
[1760819927303,4.28895062,3904.8,3904.4,0.4644]
[1760819930199,4.33359649,3904.8,3904.4,0.4644]
[1760819930390,4.33359649,3904.8,3904.1,0.6958]
[1760819932311,4.33359649,3904.8,3904.3,0.4644]
[1760819934514,4.43839649,3904.8,3904.1,0.002]
[1760819934716,19.16412319,3904.2,3904.1,0.002]
[1760819934933,16.56135752,3904.2,3904.1,0.002]
[1760819935078,17.06339786,3904.2,3904.1,0.002]
[1760819935279,17.06339786,3904.2,3903.7,0.002]
[1760819935280,19.39482163,3903.8,3903.7,0.002]
[1760819935484,26.2236813,3903.8,3903.7,0.002]
[1760819935716,26.2236813,3903.8,3903.3,0.002]
[1760819935717,3.19546913,3903.4,3903.3,0.002]
[1760819935911,30.4946258,3903.4,3903.3,0.002]
[1760819936124,3.1956004,3903.2,3903.1,1e-08]
[1760819936296,30.85454534,3902.9,3902.8,1e-08]
[1760819936478,36.09590501,3902.9,3902.8,1e-08]
[1760819936683,37.56333111,3902.9,3902.8,1e-08]
[1760819936884,37.96531299,3902.9,3902.8,1e-08]
[1760819937093,36.07286389,3902.9,3902.8,1e-08]
[1760819937296,34.09849989,3902.9,3902.8,1e-08]
[1760819937578,5.72301956,3902.9,3902.8,1e-08]
[1760819937785,12.20865955,3902.9,3902.8,1e-08]
[1760819938214,12.75703955,3902.9,3902.8,1e-08]
[1760819938413,10.02939855,3902.9,3902.8,1e-08]
[1760819941819,33.87804789,3902.9,3902.8,1e-08]
[1760819941988,29.24861589,3902.9,3902.8,1e-08]
[1760819942187,19.76412289,3902.9,3902.8,1e-08]
[1760819942520,15.62217189,3902.9,3902.8,1e-08]
[1760819942987,12.73813989,3902.9,3902.8,1e-08]
[1760819945812,10.02939855,3902.9,3902.8,1e-08]
[1760819947839,9.62741667,3902.9,3902.8,1e-08]
[1760819949214,4.29019734,3902.9,3902.8,0.44250001]
[1760819950148,4.91541933,3903.9,3902.8,0.44250001]
[1760819950352,0.128,3903.1,3902.8,0.44250001]
[1760819950513,0.39724034,3904.1,3902.8,0.44250001]
[1760819950514,2.56148599,3904.0,3902.8,0.44250001]
[1760819950715,0.128,3903.5,3902.8,3.13275098]
[1760819951047,0.128,3903.5,3902.9,0.4425]
[1760819951247,0.128,3903.5,3903.4,0.2174]
[1760819951544,0.128,3903.5,3903.4,0.6599]
[1760819951919,0.128,3903.7,3903.4,0.6599]
[1760819952246,0.128,3903.7,3903.5,0.4425]
[1760819952414,0.17265186,3903.7,3903.5,0.4425]
[1760819952615,2.73433877,3903.7,3903.6,0.4425]
[1760819953053,1.90065186,3903.7,3903.6,0.4425]
[1760819954248,1.90065186,3903.7,3903.4,0.2174]
[1760819954249,0.17265186,3903.7,3903.4,0.2174]
[1760819954423,0.17265186,3903.7,3903.1,0.6599]
[1760819954424,2.5618035,3903.5,3903.1,0.6599]
[1760819954750,2.5618035,3903.5,3903.2,0.4425]
[1760819954932,2.5618035,3903.5,3903.3,0.4425]
[1760819955135,2.95899631,3903.6,3903.3,0.4425]
[1760819955743,2.56180981,3903.5,3903.3,0.4425]
[1760819956548,2.5617399,3903.6,3903.4,0.4425]
[1760819956850,4.2897399,3903.6,3903.5,0.4425]
[1760819957214,2.56181925,3903.5,3903.2,0.4425]
[1760819957839,2.5618035,3903.5,3903.2,0.4425]
[1760819958152,2.56187735,3903.4,3903.1,0.2174]
[1760819958353,2.56195106,3903.3,3903.1,0.2174]
[1760819958751,2.56188968,3903.4,3903.1,0.6599]
[1760819958957,0.04465358,3903.3,3903.1,0.6599]
[1760819959346,2.60659605,3903.3,3902.8,0.12800001]
[1760819959734,2.60659605,3903.3,3902.9,0.4425]
[1760819959956,2.60659605,3903.3,3902.8,0.12800001]
[1760819959957,2.60659605,3903.3,3903.0,0.4425]
[1760819960155,0.04465358,3903.3,3903.0,0.4425]
[1760819960857,2.6065902,3903.3,3903.0,0.4425]
[1760819961070,2.6065902,3903.3,3902.8,0.12800001]
[1760819961230,2.6065902,3903.3,3903.0,0.4425]
[1760819962363,0.04465358,3903.3,3903.1,0.4425]
[1760819962864,0.04465358,3903.3,3903.2,0.4425]
[1760819963065,0.04465358,3903.3,3902.9,0.4425]
[1760819963265,2.60660995,3903.3,3902.9,0.4425]
[1760819963653,2.60660995,3903.3,3903.0,0.4425]
[1760819964842,0.04465358,3903.3,3903.1,0.6599]
[1760819965042,0.04465358,3903.3,3903.2,0.4425]
[1760819966867,0.04465358,3903.3,3903.2,3.0045004]
[1760819967171,0.04465358,3903.3,3903.2,7.66501836]
[1760819967669,0.001,3903.7,3903.2,7.66501836]
[1760819967849,0.001,3903.7,3903.4,0.128]
[1760819968372,0.001,3903.7,3903.5,0.4425]
[1760819968773,0.001,3903.7,3903.6,0.4425]
[1760819968944,0.001,3903.7,3903.4,0.128]
[1760819969474,2.56267442,3903.7,3903.2,3.82755809]
[1760819969673,2.69067442,3903.7,3903.2,3.82755809]
[1760819969879,0.129,3903.7,3903.3,0.4425]
[1760819970648,0.17365108,3903.7,3903.3,0.4425]
[1760819970985,2.73533762,3903.7,3903.3,0.4425]
[1760819972249,2.73533762,3903.7,3903.1,3.82755809]
[1760819972453,0.17365108,3903.7,3903.1,3.82755809]
[1760819972686,2.73537105,3903.7,3903.1,3.82755809]
[1760819972983,2.56175619,3903.6,3903.1,3.82755809]
[1760819973184,2.56175619,3903.6,3903.1,4.27005809]
[1760819976565,2.66455619,3903.6,3903.1,4.27005809]
[1760819976898,2.5618142,3903.5,3903.1,3.82755809]
[1760819977067,2.6646142,3903.5,3903.1,3.82755809]
[1760819977691,0.1028,3903.5,3903.1,3.82755809]
[1760819978592,2.56175025,3903.6,3903.1,3.82755809]
[1760819978794,0.1028,3903.5,3903.1,3.82755809]
[1760819978968,0.2308,3903.5,3903.1,3.82755809]
[1760819979385,2.68980502,3903.5,3903.1,3.82755809]
[1760819980198,0.128,3903.5,3903.1,4.27235809]
[1760819980392,0.128,3903.5,3903.2,0.6759]
[1760819980793,0.128,3903.5,3903.3,0.4448]
[1760819981173,0.128,3903.5,3903.2,0.2311]
[1760819981174,0.17265111,3903.5,3903.4,0.4448]
[1760819981602,0.128,3903.5,3903.4,0.4448]
[1760819982803,0.129,3903.7,3903.4,0.4448]
[1760819983185,0.129,3903.7,3903.2,2.79308713]
[1760819983380,0.129,3903.7,3903.3,0.4448]
[1760819983991,0.129,3903.7,3903.3,4.27235809]
[1760819984179,0.129,3903.7,3903.4,0.4448]
[1760819984514,0.001,3903.7,3903.5,0.4448]
[1760819985520,0.001,3903.7,3903.3,6.51747016]
[1760819985725,0.001,3903.7,3903.5,0.4448]
[1760819986193,0.001,3903.7,3903.6,0.4448]
[1760819989911,0.001,3903.7,3903.4,3.82755809]
[1760819990113,0.001,3903.7,3903.4,4.27235809]
[1760819991506,2.5618035,3903.5,3903.4,3.82755809]
[1760819991706,2.7888035,3903.5,3903.4,3.82755809]
[1760819995730,0.227,3903.5,3903.4,3.82755809]
[1760819995910,0.227,3903.5,3902.9,3.82755809]
[1760819996114,0.128,3903.5,3903.0,2.56212497]
[1760819996314,0.128,3903.5,3903.0,3.00692497]
[1760819996628,0.128,3903.5,3903.1,0.6759]
[1760819996826,0.128,3903.5,3903.2,0.4448]
[1760819997227,0.128,3903.5,3903.3,0.4448]
[1760819997416,0.128,3903.5,3903.4,0.4448]
[1760819999441,0.04565126,3903.7,3903.4,0.4448]
[1760819999741,0.04565126,3903.7,3903.2,2.68998261]
[1760819999943,0.04565126,3903.7,3903.5,0.4448]
[1760820000551,0.04565126,3903.7,3903.3,2.56192786]
[1760820000706,0.04565126,3903.7,3903.6,0.4448]
[1760820003725,0.04565126,3903.7,3903.3,6.38948595]
[1760820004060,0.04565126,3903.7,3903.6,0.4448]
[1760820005061,0.04565126,3903.7,3903.3,6.38948595]
[1760820005264,0.04565126,3903.7,3903.4,0.4324]
[1760820005428,0.34140327,3903.7,3903.3,3.82755809]
[1760820005617,0.099,3903.6,3903.3,3.82755809]
[1760820006057,0.25825126,3903.7,3903.3,3.82755809]
[1760820006692,0.227,3903.6,3903.3,3.82755809]
[1760820007045,0.128,3903.6,3903.3,3.82755809]
[1760820007781,0.128,3903.6,3903.1,6.38962212]
[1760820008080,0.128,3903.6,3903.2,0.4641]
[1760820012295,0.128,3903.6,3903.3,0.4641]
[1760820017582,0.04565126,3903.7,3903.4,0.4641]
[1760820017977,0.1001,3903.6,3903.2,0.128]
[1760820018712,0.04565126,3903.7,3903.2,0.128]
[1760820019216,0.04565126,3903.7,3903.2,0.5921]
[1760820019572,0.04565126,3903.7,3903.2,4.41965809]
[1760820019771,0.14575126,3903.7,3903.2,4.41965809]
[1760820021114,0.1011,3903.7,3903.2,4.41965809]
[1760820022714,2.85842683,3903.7,3903.2,3.95555809]
[1760820022918,2.85842683,3903.7,3903.2,3.82755809]
[1760820022919,0.128,3903.5,3903.2,3.82755809]
[1760820025017,0.128,3903.5,3903.2,4.29165809]
[1760820025422,0.128,3903.5,3903.2,0.4641]
[1760820026809,0.17265165,3903.5,3903.2,0.4641]
[1760820027003,0.6336,3903.4,3902.8,0.12800001]
[1760820027201,2.56210892,3903.1,3902.8,1e-08]
[1760820027592,0.1001,3903.0,3902.8,1e-08]
[1760820028010,2.66224703,3903.0,3902.8,1e-08]
[1760820030825,2.70690346,3903.0,3902.8,1e-08]
[1760820034128,2.56219734,3902.9,3902.8,1e-08]
[1760820034329,2.70689812,3903.0,3902.8,1e-08]
[1760820035029,2.60679812,3903.0,3902.8,1e-08]
[1760820037101,2.73479812,3903.0,3902.8,1e-08]
[1760820040031,2.56219734,3902.9,3902.8,1e-08]
[1760820040231,2.66229734,3902.9,3902.8,1e-08]
[1760820040732,2.56219734,3902.9,3902.8,1e-08]
[1760820040922,2.73480309,3903.0,3902.8,1e-08]
[1760820041937,0.17265643,3903.0,3902.8,1e-08]
[1760820042830,0.17265643,3903.0,3902.9,0.4489]
[1760820043438,0.17265643,3903.0,3902.8,1e-08]
[1760820044238,0.17265643,3903.0,3902.8,0.44890001]
[1760820045348,0.17265643,3903.0,3902.8,1e-08]
[1760820045565,0.17265643,3903.0,3902.9,0.4489]
[1760820046058,0.17265643,3903.0,3902.8,1e-08]
[1760820047215,0.17265643,3903.0,3902.8,0.44890001]
[1760820049444,0.17265643,3903.0,3902.8,1e-08]
[1760820050547,0.17265643,3903.0,3902.8,0.44890001]
[1760820053368,0.17265643,3903.0,3902.8,1e-08]
[1760820054233,0.17365643,3903.0,3902.8,1e-08]
[1760820056833,2.73580185,3903.0,3902.8,1e-08]
[1760820057649,0.17365643,3903.0,3902.8,1e-08]
[1760820058541,0.1001,3902.9,3902.8,1e-08]
[1760820058954,2.56219734,3902.9,3902.8,1e-08]
[1760820059172,0.1001,3902.9,3902.8,1e-08]
[1760820059480,2.66229734,3902.9,3902.8,1e-08]
[1760820060363,3.29589734,3902.9,3902.8,1e-08]
[1760820060961,0.129,3903.0,3902.8,1e-08]
[1760820061355,0.129,3903.0,3902.9,0.4489]
[1760820062079,0.129,3903.0,3902.8,1e-08]
[1760820062483,0.129,3903.0,3902.8,0.44890001]
[1760820063255,0.17365677,3903.0,3902.8,0.44890001]
[1760820064784,0.04565677,3903.0,3902.9,0.4546]
[1760820065083,0.04565677,3903.0,3902.8,1e-08]
[1760820065488,0.17365677,3903.0,3902.8,1e-08]
[1760820066988,0.17365677,3903.0,3902.9,0.4563]
[1760820067182,0.04565677,3903.0,3902.8,1e-08]
[1760820067388,0.04565677,3903.0,3902.8,0.45630001]
[1760820067560,0.04565677,3903.0,3902.8,1e-08]
[1760820067760,2.56219734,3902.9,3902.8,1e-08]
[1760820067959,2.66229734,3902.9,3902.8,1e-08]
[1760820068687,2.56219734,3902.9,3902.8,1e-08]
[1760820073203,2.66229734,3902.9,3902.8,1e-08]
[1760820073409,2.56219734,3902.9,3902.8,1e-08]
[1760820073785,2.66229734,3902.9,3902.8,1e-08]
[1760820074202,3.29589734,3902.9,3902.8,1e-08]
[1760820075017,3.19579734,3902.9,3902.8,1e-08]
[1760820075590,3.29589734,3902.9,3902.8,1e-08]
[1760820075791,3.19579734,3902.9,3902.8,1e-08]
[1760820076408,0.001,3903.0,3902.8,3.01852324]
[1760820076590,0.001,3903.0,3902.9,1.01439082]
[1760820081816,0.001,3903.0,3902.9,1.14239082]
[1760820083417,0.001,3903.0,3902.9,3.70458816]
[1760820083808,0.001,3903.0,3902.9,1.14239082]
[1760820084518,7.26675102,3903.0,3902.9,0.128]
[1760820084693,8.37489136,3903.0,3902.9,0.128]
[1760820084895,8.37489136,3903.0,3902.8,1e-08]
[1760820084896,3.19579734,3902.9,3902.8,1e-08]
[1760820085098,3.56803768,3902.9,3902.8,1e-08]
[1760820085301,3.67033768,3902.9,3902.8,1e-08]
[1760820085513,3.8177597,3902.9,3902.8,1e-08]
[1760820086093,18.8764037,3902.9,3902.8,1e-08]
[1760820087430,20.55974458,3902.9,3902.8,1e-08]
[1760820088231,20.96169718,3902.9,3902.8,1e-08]
[1760820089167,7.09824918,3902.9,3902.8,1e-08]
[1760820089450,3.25990195,3902.9,3902.8,1e-08]
[1760820089624,2.96414994,3902.9,3902.8,1e-08]
[1760820091251,7.66776927,3902.9,3902.8,1e-08]
[1760820091448,7.77006927,3902.9,3902.8,1e-08]
[1760820094054,8.40366927,3902.9,3902.8,1e-08]
[1760820095152,8.50644062,3902.9,3902.8,1e-08]
[1760820098955,17.02343962,3902.9,3902.8,1e-08]
[1760820099467,15.74093962,3902.9,3902.8,1e-08]
[1760820099864,17.46893962,3902.9,3902.8,1e-08]
[1760820100066,38.2859746,3902.9,3902.8,1e-08]
[1760820100270,36.832603,3902.9,3902.8,1e-08]
[1760820100939,38.798017,3902.9,3902.8,1e-08]
[1760820101176,32.002363,3902.9,3902.8,1e-08]
[1760820101968,34.352271,3902.9,3902.8,1e-08]
[1760820102279,34.352271,3902.9,3902.1,0.002]
[1760820102280,3.19625696,3902.2,3902.1,0.002]
[1760820102443,24.08071229,3902.2,3902.1,0.002]
[1760820102774,22.51749629,3902.2,3902.1,0.002]
[1760820102966,10.27968317,3902.2,3902.1,0.002]
[1760820103137,23.17204217,3902.2,3902.1,0.002]
[1760820104071,10.27968317,3902.2,3902.1,0.002]
[1760820104255,26.43284217,3902.2,3902.1,0.002]
[1760820104453,26.66415205,3902.2,3902.1,0.002]
[1760820105185,3.19632263,3902.1,3902.0,0.002]
[1760820105345,33.92621383,3902.1,3902.0,0.002]
[1760820105544,34.02851383,3902.1,3902.0,0.002]
[1760820106054,35.30491983,3902.1,3902.0,0.002]
[1760820106480,10.85045983,3902.1,3902.0,0.002]
[1760820107045,15.66322583,3902.1,3902.0,0.002]
[1760820107250,16.0652772,3902.1,3902.0,0.002]
[1760820107977,14.9533932,3902.1,3902.0,0.002]